[Event "Titled Tuesday Blitz March 28 Late 2023"]
[White "Narva, Triin"]
[Black "Torres Dominguez, David"]
[WhiteFideId "4502680"]
[BlackFideId "2220857"]
[WhiteElo "1944"]
[BlackElo "1999"]
[Result "1/2-1/2"]
[Round "06"]
[TimeControl "180+2"]
[Date "2023.03.28"]
[WhiteClock "0:00:07"]
[BlackClock "0:00:07"]

1. e4 {[%clk 0:03:00]}  Nc6 {[%clk 0:02:55]} 2. d4 {[%clk 0:03:00]}  e5 {[%clk 0:02:55]} 3. d5 {[%clk 0:02:59]}  Nce7 {[%clk 0:02:55]} 4. Nc3 {[%clk 0:02:54]}  Ng6 {[%clk 0:02:55]} 5. Nf3 {[%clk 0:02:49]}  Bb4 {[%clk 0:02:54]} 6. Bd3 {[%clk 0:02:49]}  d6 {[%clk 0:02:53]} 7. O-O {[%clk 0:02:48]}  N8e7 {[%clk 0:02:53]} 8. a3 {[%clk 0:02:45]}  Bxc3 {[%clk 0:02:52]} 9. bxc3 {[%clk 0:02:46]}  O-O {[%clk 0:02:52]} 10. Rb1 {[%clk 0:02:45]}  b6 {[%clk 0:02:52]} 11. h3 {[%clk 0:02:42]}  f5 {[%clk 0:02:50]} 12. c4 {[%clk 0:02:34]}  a5 {[%clk 0:02:23]} 13. c3 {[%clk 0:01:49]}  Bd7 {[%clk 0:02:22]} 14. Qc2 {[%clk 0:01:46]}  h6 {[%clk 0:02:20]} 15. exf5 {[%clk 0:01:35]}  Nxf5 {[%clk 0:02:17]} 16. Nd2 {[%clk 0:01:33]}  Nf4 {[%clk 0:02:15]} 17. Ne4 {[%clk 0:01:23]}  Nxh3+ {[%clk 0:01:05]} 18. gxh3 {[%clk 0:01:06]}  Qh4 {[%clk 0:01:04]} 19. f4 {[%clk 0:00:55]}  Qxh3 {[%clk 0:00:56]} 20. fxe5 {[%clk 0:00:55]}  Nh4 {[%clk 0:00:53]} 21. Nf6+ {[%clk 0:00:23]}  gxf6 {[%clk 0:00:47]} 22. Be4 {[%clk 0:00:14]}  fxe5 {[%clk 0:00:42]} 23. Bxh6 {[%clk 0:00:14]}  Rxf1+ {[%clk 0:00:28]} 24. Rxf1 {[%clk 0:00:14]}  Bg4 {[%clk 0:00:21]} 25. Bg2 {[%clk 0:00:13]}  Qxg2+ {[%clk 0:00:18]} 26. Qxg2 {[%clk 0:00:14]}  Nxg2 {[%clk 0:00:18]} 27. Kxg2 {[%clk 0:00:14]}  Kh7 {[%clk 0:00:18]} 28. Rh1 {[%clk 0:00:10]}  Rg8 {[%clk 0:00:15]} 29. Be3+ {[%clk 0:00:08]}  Kg6 {[%clk 0:00:15]} 30. Kf2 {[%clk 0:00:08]}  Rf8+ {[%clk 0:00:14]} 31. Ke1 {[%clk 0:00:08]}  Rf3 {[%clk 0:00:13]} 32. Kd2 {[%clk 0:00:08]}  Rg3 {[%clk 0:00:11]} 33. Rh6+ {[%clk 0:00:08]}  Kg7 {[%clk 0:00:11]} 34. Rh2 {[%clk 0:00:07]}  Bf3 {[%clk 0:00:10]} 35. Rf2 {[%clk 0:00:06]}  Rg2 {[%clk 0:00:10]} 36. Ke1 {[%clk 0:00:06]}  Rxf2 {[%clk 0:00:09]} 37. Kxf2 {[%clk 0:00:07]}  Bd1 {[%clk 0:00:08]} 38. Bg5 {[%clk 0:00:06]}  Bb3 {[%clk 0:00:07]} 39. Bd8 {[%clk 0:00:06]}  Bxc4 {[%clk 0:00:08]} 40. Bxc7 {[%clk 0:00:06]}  Bxd5 {[%clk 0:00:08]} 41. Bxd6 {[%clk 0:00:07]}  Kf6 {[%clk 0:00:07]} 42. Bc7 {[%clk 0:00:07]}  a4 {[%clk 0:00:06]} 43. Bxb6 {[%clk 0:00:07]}  Bc4 {[%clk 0:00:07]} 44. Ke3 {[%clk 0:00:07]}  Ke6 {[%clk 0:00:08]} 45. Bc5 {[%clk 0:00:07]}  Kd5 {[%clk 0:00:08]} 46. Bb4 {[%clk 0:00:08]}  e4 {[%clk 0:00:08]} 47. Bf8 {[%clk 0:00:08]}  Bd3 {[%clk 0:00:08]} 48. Bb4 {[%clk 0:00:08]}  Kc4 {[%clk 0:00:09]} 49. Kf4 {[%clk 0:00:07]}  Kb3 {[%clk 0:00:10]} 50. Ke3 {[%clk 0:00:08]}  Kc2 {[%clk 0:00:09]} 51. Ba5 {[%clk 0:00:06]}  Kb3 {[%clk 0:00:09]} 52. Bb4 {[%clk 0:00:07]}  Kc4 {[%clk 0:00:10]} 53. Ba5 {[%clk 0:00:07]}  Bb1 {[%clk 0:00:10]} 54. Bb4 {[%clk 0:00:07]}  Kb3 {[%clk 0:00:09]} 55. Kd4 {[%clk 0:00:07]}  Bd3 {[%clk 0:00:07]} 56. Ke3 {[%clk 0:00:07]} 1/2-1/2


[Site "https://www.chess.com"]

[Event "Titled Tuesday Blitz March 28 Late 2023"]
[White "Bortnyk, Olexandr"]
[Black "Kamsky, Gata"]
[WhiteFideId "14120828"]
[BlackFideId "2000024"]
[WhiteElo "2734"]
[BlackElo "2666"]
[Result "1-0"]
[Round "07"]
[TimeControl "180+2"]
[Date "2023.03.28"]
[WhiteClock "0:00:03"]
[BlackClock "0:00:13"]

1. d4 {[%clk 0:03:00]}  d5 {[%clk 0:02:57]} 2. Nc3 {[%clk 0:03:01]}  Nf6 {[%clk 0:02:51]} 3. Bf4 {[%clk 0:03:01]}  Bf5 {[%clk 0:02:47]} 4. e3 {[%clk 0:03:01]}  e6 {[%clk 0:02:45]} 5. Nf3 {[%clk 0:03:02]}  a6 {[%clk 0:02:44]} 6. Ne5 {[%clk 0:03:01]}  h5 {[%clk 0:02:41]} 7. Bd3 {[%clk 0:03:02]}  Bxd3 {[%clk 0:02:40]} 8. cxd3 {[%clk 0:03:02]}  Nbd7 {[%clk 0:02:27]} 9. Qb3 {[%clk 0:03:00]}  Rb8 {[%clk 0:02:22]} 10. Rc1 {[%clk 0:02:56]}  Nxe5 {[%clk 0:02:20]} 11. Bxe5 {[%clk 0:02:56]}  Bd6 {[%clk 0:02:18]} 12. h3 {[%clk 0:02:51]}  Bxe5 {[%clk 0:02:17]} 13. dxe5 {[%clk 0:02:52]}  Nd7 {[%clk 0:02:17]} 14. d4 {[%clk 0:02:51]}  c5 {[%clk 0:02:14]} 15. O-O {[%clk 0:02:50]}  c4 {[%clk 0:02:09]} 16. Qd1 {[%clk 0:02:49]}  b5 {[%clk 0:02:09]} 17. e4 {[%clk 0:02:39]}  b4 {[%clk 0:02:07]} 18. Ne2 {[%clk 0:02:29]}  Nb6 {[%clk 0:02:05]} 19. exd5 {[%clk 0:02:30]}  exd5 {[%clk 0:01:57]} 20. Nf4 {[%clk 0:02:25]}  Qg5 {[%clk 0:01:54]} 21. Qf3 {[%clk 0:02:24]}  Qf5 {[%clk 0:01:42]} 22. Qe3 {[%clk 0:01:22]}  Rd8 {[%clk 0:01:07]} 23. Rfe1 {[%clk 0:01:13]}  g5 {[%clk 0:01:02]} 24. e6 {[%clk 0:00:29]}  Qxf4 {[%clk 0:00:39]} 25. exf7+ {[%clk 0:00:29]}  Kd7 {[%clk 0:00:39]} 26. Qe7+ {[%clk 0:00:22]}  Kc8 {[%clk 0:00:40]} 27. Qxb4 {[%clk 0:00:20]}  Qd6 {[%clk 0:00:26]} 28. Qa5 {[%clk 0:00:14]}  Kb7 {[%clk 0:00:25]} 29. b3 {[%clk 0:00:11]}  Rhf8 {[%clk 0:00:22]} 30. Qd2 {[%clk 0:00:01]}  Rxf7 {[%clk 0:00:22]} 31. Qxg5 {[%clk 0:00:02]}  Qf6 {[%clk 0:00:19]} 32. Qxh5 {[%clk 0:00:02]}  Qxf2+ {[%clk 0:00:18]} 33. Kh1 {[%clk 0:00:03]}  Rg8 {[%clk 0:00:18]} 34. Rg1 {[%clk 0:00:03]}  Qf4 {[%clk 0:00:17]} 35. bxc4 {[%clk 0:00:03]}  dxc4 {[%clk 0:00:17]} 36. Rb1 {[%clk 0:00:03]}  Qxd4 {[%clk 0:00:13]} 37. Qxf7+ {[%clk 0:00:03]} 1-0


[Site "https://www.chess.com"]

[Event "Titled Tuesday Blitz March 28 Late 2023"]
[White "Grigoriants, Sergey"]
[Black "Lazavik, Denis"]
[WhiteFideId "4130804"]
[BlackFideId "13515110"]
[WhiteElo "2502"]
[BlackElo "2560"]
[Result "1/2-1/2"]
[Round "07"]
[TimeControl "180+2"]
[Date "2023.03.28"]
[WhiteClock "0:00:06"]
[BlackClock "0:00:06"]

1. d4 {[%clk 0:02:53]}  Nf6 {[%clk 0:02:58]} 2. c4 {[%clk 0:02:53]}  e6 {[%clk 0:02:59]} 3. Nc3 {[%clk 0:02:51]}  Bb4 {[%clk 0:02:59]} 4. e3 {[%clk 0:02:52]}  O-O {[%clk 0:02:59]} 5. Bd3 {[%clk 0:02:50]}  d5 {[%clk 0:02:59]} 6. Ne2 {[%clk 0:02:44]}  dxc4 {[%clk 0:02:50]} 7. Bxc4 {[%clk 0:02:44]}  c5 {[%clk 0:02:49]} 8. a3 {[%clk 0:02:32]}  Bxc3+ {[%clk 0:02:49]} 9. Nxc3 {[%clk 0:02:31]}  cxd4 {[%clk 0:02:45]} 10. exd4 {[%clk 0:02:32]}  Nc6 {[%clk 0:02:46]} 11. Be3 {[%clk 0:02:32]}  b6 {[%clk 0:02:46]} 12. O-O {[%clk 0:02:28]}  Bb7 {[%clk 0:02:46]} 13. Rc1 {[%clk 0:02:21]}  Rc8 {[%clk 0:02:45]} 14. Ba2 {[%clk 0:02:14]}  Ne7 {[%clk 0:02:44]} 15. Bg5 {[%clk 0:02:11]}  Ng6 {[%clk 0:02:35]} 16. Qa4 {[%clk 0:01:19]}  h6 {[%clk 0:02:27]} 17. Bxf6 {[%clk 0:01:14]}  Qxf6 {[%clk 0:02:26]} 18. d5 {[%clk 0:01:12]}  Nf4 {[%clk 0:02:18]} 19. Qxa7 {[%clk 0:01:07]}  Bxd5 {[%clk 0:02:13]} 20. Bxd5 {[%clk 0:01:06]}  exd5 {[%clk 0:02:14]} 21. Qa6 {[%clk 0:00:58]}  Qg5 {[%clk 0:01:51]} 22. g3 {[%clk 0:00:57]}  d4 {[%clk 0:01:51]} 23. Ne4 {[%clk 0:00:42]}  Qf5 {[%clk 0:00:51]} 24. Rxc8 {[%clk 0:00:25]}  Nh3+ {[%clk 0:00:42]} 25. Kg2 {[%clk 0:00:25]}  Rxc8 {[%clk 0:00:41]} 26. Nd6 {[%clk 0:00:21]}  Nf4+ {[%clk 0:00:34]} 27. Kg1 {[%clk 0:00:19]}  Nh3+ {[%clk 0:00:20]} 28. Kg2 {[%clk 0:00:19]}  Qd5+ {[%clk 0:00:07]} 29. Kxh3 {[%clk 0:00:17]}  Rc5 {[%clk 0:00:07]} 30. Qxb6 {[%clk 0:00:12]}  Kh7 {[%clk 0:00:05]} 31. f3 {[%clk 0:00:10]}  Rc6 {[%clk 0:00:05]} 32. Qb5 {[%clk 0:00:10]}  Qxd6 {[%clk 0:00:05]} 33. Qd3+ {[%clk 0:00:10]}  g6 {[%clk 0:00:05]} 34. Rd1 {[%clk 0:00:10]}  Qe6+ {[%clk 0:00:05]} 35. Kg2 {[%clk 0:00:10]}  Rd6 {[%clk 0:00:05]} 36. Rd2 {[%clk 0:00:09]}  h5 {[%clk 0:00:06]} 37. h4 {[%clk 0:00:09]}  Qd5 {[%clk 0:00:06]} 38. a4 {[%clk 0:00:08]}  Re6 {[%clk 0:00:06]} 39. Re2 {[%clk 0:00:06]}  Rb6 {[%clk 0:00:06]} 40. a5 {[%clk 0:00:05]}  Rb3 {[%clk 0:00:06]} 41. Qe4 {[%clk 0:00:04]}  Qc4 {[%clk 0:00:06]} 42. Rc2 {[%clk 0:00:04]}  Qb5 {[%clk 0:00:05]} 43. Qxd4 {[%clk 0:00:04]}  Qf5 {[%clk 0:00:06]} 44. Rf2 {[%clk 0:00:03]}  Qxa5 {[%clk 0:00:06]} 45. Qc4 {[%clk 0:00:03]}  Rb7 {[%clk 0:00:07]} 46. f4 {[%clk 0:00:03]}  Qb6 {[%clk 0:00:07]} 47. f5 {[%clk 0:00:03]}  Kg7 {[%clk 0:00:03]} 48. fxg6 {[%clk 0:00:03]}  fxg6 {[%clk 0:00:04]} 49. Qc3+ {[%clk 0:00:03]}  Kh7 {[%clk 0:00:04]} 50. Qf3 {[%clk 0:00:04]}  Rg7 {[%clk 0:00:04]} 51. Qe4 {[%clk 0:00:04]}  Qd6 {[%clk 0:00:04]} 52. Qf4 {[%clk 0:00:04]}  Qc6+ {[%clk 0:00:04]} 53. Qf3 {[%clk 0:00:05]}  Qb6 {[%clk 0:00:05]} 54. Qf4 {[%clk 0:00:05]}  Qc6+ {[%clk 0:00:05]} 55. Qf3 {[%clk 0:00:06]}  Qb6 {[%clk 0:00:06]} 1/2-1/2


[Site "https://www.chess.com"]

[Event "Titled Tuesday Blitz March 28 Late 2023"]
[White "Drygalov, Sergey"]
[Black "Svane, Rasmus"]
[WhiteFideId "24171743"]
[BlackFideId "4657101"]
[WhiteElo "2533"]
[BlackElo "2597"]
[Result "0-1"]
[Round "07"]
[TimeControl "180+2"]
[Date "2023.03.28"]
[WhiteClock "0:00:02"]
[BlackClock "0:00:30"]

1. d4 {[%clk 0:03:00]}  Nf6 {[%clk 0:02:57]} 2. c4 {[%clk 0:03:01]}  e6 {[%clk 0:02:58]} 3. Nf3 {[%clk 0:03:01]}  h6 {[%clk 0:02:56]} 4. Nc3 {[%clk 0:03:00]}  Bb4 {[%clk 0:02:57]} 5. Qc2 {[%clk 0:02:50]}  d5 {[%clk 0:02:49]} 6. a3 {[%clk 0:02:36]}  Bxc3+ {[%clk 0:02:49]} 7. Qxc3 {[%clk 0:02:36]}  b6 {[%clk 0:02:49]} 8. cxd5 {[%clk 0:02:31]}  Nxd5 {[%clk 0:02:31]} 9. Qc2 {[%clk 0:02:30]}  Ba6 {[%clk 0:02:31]} 10. e4 {[%clk 0:02:20]}  Bxf1 {[%clk 0:02:31]} 11. Kxf1 {[%clk 0:02:20]}  Nf6 {[%clk 0:02:21]} 12. Bf4 {[%clk 0:02:16]}  O-O {[%clk 0:02:04]} 13. g4 {[%clk 0:02:09]}  Qd7 {[%clk 0:01:45]} 14. g5 {[%clk 0:02:04]}  hxg5 {[%clk 0:01:43]} 15. Bxg5 {[%clk 0:02:04]}  Nh7 {[%clk 0:01:39]} 16. Rg1 {[%clk 0:02:02]}  Nxg5 {[%clk 0:01:36]} 17. Rxg5 {[%clk 0:02:01]}  f6 {[%clk 0:01:36]} 18. Rg3 {[%clk 0:02:00]}  Nc6 {[%clk 0:01:36]} 19. Rd1 {[%clk 0:01:59]}  Rad8 {[%clk 0:01:34]} 20. Kg1 {[%clk 0:01:57]}  Ne5 {[%clk 0:01:29]} 21. Kh1 {[%clk 0:01:36]}  Nxf3 {[%clk 0:01:22]} 22. Rxf3 {[%clk 0:01:36]}  c5 {[%clk 0:01:23]} 23. d5 {[%clk 0:01:36]}  exd5 {[%clk 0:01:24]} 24. exd5 {[%clk 0:01:34]}  Rfe8 {[%clk 0:01:17]} 25. Qc4 {[%clk 0:01:20]}  Re5 {[%clk 0:01:13]} 26. Rfd3 {[%clk 0:00:43]}  Qf5 {[%clk 0:01:11]} 27. d6+ {[%clk 0:00:37]}  Kf8 {[%clk 0:01:09]} 28. Qh4 {[%clk 0:00:28]}  Qe4+ {[%clk 0:01:09]} 29. Qxe4 {[%clk 0:00:28]}  Rxe4 {[%clk 0:01:10]} 30. Kg2 {[%clk 0:00:25]}  Kf7 {[%clk 0:01:09]} 31. Kf3 {[%clk 0:00:23]}  Re5 {[%clk 0:01:09]} 32. Kg3 {[%clk 0:00:22]}  Rd7 {[%clk 0:01:10]} 33. f4 {[%clk 0:00:22]}  Re2 {[%clk 0:01:07]} 34. b4 {[%clk 0:00:22]}  c4 {[%clk 0:01:03]} 35. Rc3 {[%clk 0:00:22]}  b5 {[%clk 0:00:46]} 36. a4 {[%clk 0:00:22]}  a6 {[%clk 0:00:46]} 37. axb5 {[%clk 0:00:23]}  axb5 {[%clk 0:00:47]} 38. Rd5 {[%clk 0:00:23]}  Rb2 {[%clk 0:00:39]} 39. Rxb5 {[%clk 0:00:10]}  Rb3 {[%clk 0:00:40]} 40. Rxb3 {[%clk 0:00:10]}  cxb3 {[%clk 0:00:41]} 41. Rd5 {[%clk 0:00:10]}  b2 {[%clk 0:00:41]} 42. Rd1 {[%clk 0:00:11]}  Rxd6 {[%clk 0:00:42]} 43. Rb1 {[%clk 0:00:11]}  Rd3+ {[%clk 0:00:43]} 44. Kf2 {[%clk 0:00:10]}  Rb3 {[%clk 0:00:44]} 45. Ke2 {[%clk 0:00:05]}  Ke6 {[%clk 0:00:44]} 46. Kd2 {[%clk 0:00:03]}  Kf5 {[%clk 0:00:44]} 47. h4 {[%clk 0:00:04]}  g6 {[%clk 0:00:43]} 48. Kc2 {[%clk 0:00:04]}  Rxb4 {[%clk 0:00:44]} 49. Kc3 {[%clk 0:00:04]}  Rb8 {[%clk 0:00:42]} 50. Kc2 {[%clk 0:00:04]}  Kxf4 {[%clk 0:00:40]} 51. Rf1+ {[%clk 0:00:04]}  Kg4 {[%clk 0:00:39]} 52. Kb1 {[%clk 0:00:04]}  f5 {[%clk 0:00:39]} 53. Rg1+ {[%clk 0:00:05]}  Kh5 {[%clk 0:00:38]} 54. Rh1 {[%clk 0:00:05]}  Rb4 {[%clk 0:00:37]} 55. Rg1 {[%clk 0:00:04]}  Rg4 {[%clk 0:00:35]} 56. Rf1 {[%clk 0:00:03]}  Rg2 {[%clk 0:00:34]} 57. Rh1 {[%clk 0:00:04]}  f4 {[%clk 0:00:33]} 58. Rf1 {[%clk 0:00:04]}  Kg4 {[%clk 0:00:34]} 59. Rh1 {[%clk 0:00:02]}  f3 {[%clk 0:00:34]} 60. Rf1 {[%clk 0:00:02]}  Re2 {[%clk 0:00:33]} 61. Rg1+ {[%clk 0:00:02]}  Kxh4 {[%clk 0:00:30]} 62. Rxg6 {[%clk 0:00:02]}  f2 {[%clk 0:00:30]} 63. Rf6 {[%clk 0:00:02]}  Re1+ {[%clk 0:00:30]} 0-1


[Site "https://www.chess.com"]

[Event "Titled Tuesday Blitz March 28 Late 2023"]
[White "Mammadov, Zaur"]
[Black "Maghsoodloo, Parham"]
[WhiteFideId "13401033"]
[BlackFideId "12539929"]
[WhiteElo "2441"]
[BlackElo "2647"]
[Result "0-1"]
[Round "07"]
[TimeControl "180+2"]
[Date "2023.03.28"]
[WhiteClock "0:00:14"]
[BlackClock "0:00:37"]

1. e4 {[%clk 0:02:56]}  c6 {[%clk 0:03:00]} 2. c4 {[%clk 0:02:56]}  d5 {[%clk 0:03:00]} 3. cxd5 {[%clk 0:02:57]}  cxd5 {[%clk 0:03:01]} 4. exd5 {[%clk 0:02:58]}  Nf6 {[%clk 0:03:01]} 5. Nc3 {[%clk 0:02:59]}  Nxd5 {[%clk 0:03:01]} 6. Nf3 {[%clk 0:02:56]}  e6 {[%clk 0:02:51]} 7. d4 {[%clk 0:02:56]}  Be7 {[%clk 0:02:51]} 8. Bd3 {[%clk 0:02:56]}  Nc6 {[%clk 0:02:49]} 9. O-O {[%clk 0:02:56]}  O-O {[%clk 0:02:43]} 10. Re1 {[%clk 0:02:57]}  Nf6 {[%clk 0:02:38]} 11. Bg5 {[%clk 0:02:56]}  g6 {[%clk 0:02:37]} 12. Bc4 {[%clk 0:02:40]}  Na5 {[%clk 0:02:27]} 13. Bd3 {[%clk 0:02:31]}  Nc6 {[%clk 0:02:27]} 14. Bc4 {[%clk 0:02:31]}  Nd5 {[%clk 0:02:22]} 15. Bh6 {[%clk 0:02:29]}  Re8 {[%clk 0:02:21]} 16. Ne4 {[%clk 0:02:21]}  a6 {[%clk 0:02:17]} 17. Rc1 {[%clk 0:02:19]}  Bd7 {[%clk 0:02:12]} 18. a3 {[%clk 0:02:11]}  Rc8 {[%clk 0:02:11]} 19. Qd2 {[%clk 0:02:11]}  Nf6 {[%clk 0:01:44]} 20. Qf4 {[%clk 0:01:31]}  Nxe4 {[%clk 0:01:34]} 21. Rxe4 {[%clk 0:01:32]}  Qc7 {[%clk 0:01:31]} 22. Qe3 {[%clk 0:01:19]}  Bf6 {[%clk 0:01:24]} 23. Re1 {[%clk 0:01:07]}  Ne7 {[%clk 0:01:15]} 24. Bb3 {[%clk 0:00:46]}  Nf5 {[%clk 0:01:15]} 25. Qd2 {[%clk 0:00:46]}  Bc6 {[%clk 0:01:11]} 26. Bf4 {[%clk 0:00:39]}  Qb6 {[%clk 0:01:07]} 27. Rxe6 {[%clk 0:00:20]}  Qxb3 {[%clk 0:00:48]} 28. Rxf6 {[%clk 0:00:20]}  Bxf3 {[%clk 0:00:48]} 29. gxf3 {[%clk 0:00:18]}  Qxf3 {[%clk 0:00:45]} 30. Bg3 {[%clk 0:00:14]}  Nxd4 {[%clk 0:00:37]} 0-1


[Site "https://www.chess.com"]

[Event "Titled Tuesday Blitz March 28 Late 2023"]
[White "Andreikin, Dmitry"]
[Black "Babazada, Khazar"]
[WhiteFideId "4158814"]
[BlackFideId "13413554"]
[WhiteElo "2736"]
[BlackElo "2364"]
[Result "1-0"]
[Round "07"]
[TimeControl "180+2"]
[Date "2023.03.28"]
[WhiteClock "0:00:05"]
[BlackClock "0:00:03"]

1. e4 {[%clk 0:03:00]}  e5 {[%clk 0:02:50]} 2. Nf3 {[%clk 0:02:59]}  Nc6 {[%clk 0:02:51]} 3. Nc3 {[%clk 0:02:59]}  Nf6 {[%clk 0:02:50]} 4. h3 {[%clk 0:03:00]}  Bb4 {[%clk 0:02:33]} 5. Nd5 {[%clk 0:02:59]}  Bc5 {[%clk 0:02:33]} 6. c3 {[%clk 0:02:57]}  O-O {[%clk 0:02:27]} 7. d4 {[%clk 0:02:41]}  exd4 {[%clk 0:02:27]} 8. cxd4 {[%clk 0:02:38]}  Nxd5 {[%clk 0:02:03]} 9. dxc5 {[%clk 0:02:37]}  Nf6 {[%clk 0:02:03]} 10. Bd3 {[%clk 0:02:34]}  d5 {[%clk 0:01:55]} 11. cxd6 {[%clk 0:02:32]}  Qxd6 {[%clk 0:01:54]} 12. Bb1 {[%clk 0:01:47]}  Qxd1+ {[%clk 0:01:49]} 13. Kxd1 {[%clk 0:01:48]}  Be6 {[%clk 0:01:49]} 14. Bg5 {[%clk 0:01:45]}  Nd7 {[%clk 0:01:46]} 15. Kc1 {[%clk 0:01:38]}  f6 {[%clk 0:01:15]} 16. Be3 {[%clk 0:01:38]}  Rfe8 {[%clk 0:01:10]} 17. Rd1 {[%clk 0:01:35]}  Nb6 {[%clk 0:01:08]} 18. b3 {[%clk 0:01:32]}  Bf7 {[%clk 0:01:09]} 19. Kb2 {[%clk 0:01:24]}  Bg6 {[%clk 0:01:06]} 20. Nd2 {[%clk 0:01:23]}  Rad8 {[%clk 0:01:05]} 21. f3 {[%clk 0:01:18]}  Bf7 {[%clk 0:00:47]} 22. a3 {[%clk 0:01:04]}  Na5 {[%clk 0:00:40]} 23. Bc2 {[%clk 0:01:01]}  Nxb3 {[%clk 0:00:25]} 24. Bxb3 {[%clk 0:00:21]}  Bxb3 {[%clk 0:00:24]} 25. Nxb3 {[%clk 0:00:15]}  Nc4+ {[%clk 0:00:23]} 26. Kc3 {[%clk 0:00:16]}  Nxe3 {[%clk 0:00:24]} 27. Rg1 {[%clk 0:00:09]}  f5 {[%clk 0:00:18]} 28. Rae1 {[%clk 0:00:08]}  f4 {[%clk 0:00:17]} 29. g3 {[%clk 0:00:08]}  Re6 {[%clk 0:00:11]} 30. gxf4 {[%clk 0:00:05]}  Rc6+ {[%clk 0:00:12]} 31. Kb2 {[%clk 0:00:05]}  Nc4+ {[%clk 0:00:09]} 32. Ka2 {[%clk 0:00:05]}  Ra6 {[%clk 0:00:09]} 33. Kb1 {[%clk 0:00:03]}  Rxa3 {[%clk 0:00:09]} 34. Kc2 {[%clk 0:00:04]}  Rxb3 {[%clk 0:00:04]} 35. Kxb3 {[%clk 0:00:04]}  Nd2+ {[%clk 0:00:05]} 36. Kc3 {[%clk 0:00:04]}  Nxf3 {[%clk 0:00:06]} 37. Rd1 {[%clk 0:00:05]}  Re8 {[%clk 0:00:05]} 38. Rg3 {[%clk 0:00:05]}  Nh4 {[%clk 0:00:04]} 39. Rd7 {[%clk 0:00:05]}  g6 {[%clk 0:00:03]} 40. Rxc7 {[%clk 0:00:05]}  Rxe4 {[%clk 0:00:02]} 41. Rd3 {[%clk 0:00:05]}  Re8 {[%clk 0:00:02]} 42. Rxb7 {[%clk 0:00:05]}  Nf5 {[%clk 0:00:03]} 43. Rxa7 {[%clk 0:00:06]}  Ng7 {[%clk 0:00:01]} 44. Rdd7 {[%clk 0:00:05]}  Ne6 {[%clk 0:00:02]} 45. Rxh7 {[%clk 0:00:05]}  Nxf4 {[%clk 0:00:03]} 46. Rhg7+ {[%clk 0:00:04]}  Kf8 {[%clk 0:00:03]} 47. Rgf7+ {[%clk 0:00:04]}  Kg8 {[%clk 0:00:03]} 48. Rxf4 {[%clk 0:00:05]} 1-0


[Site "https://www.chess.com"]

[Event "Titled Tuesday Blitz March 28 Late 2023"]
[White "Bluebaum, Matthias"]
[Black "Van Foreest, Lucas"]
[WhiteFideId "24651516"]
[BlackFideId "1039792"]
[WhiteElo "2638"]
[BlackElo "2519"]
[Result "1-0"]
[Round "07"]
[TimeControl "180+2"]
[Date "2023.03.28"]
[WhiteClock "0:00:29"]
[BlackClock "0:00:01"]

1. d4 {[%clk 0:03:00]}  g5 {[%clk 0:02:55]} 2. Bxg5 {[%clk 0:02:59]}  Bg7 {[%clk 0:02:56]} 3. c3 {[%clk 0:02:59]}  c5 {[%clk 0:02:56]} 4. dxc5 {[%clk 0:02:59]}  Na6 {[%clk 0:02:56]} 5. Be3 {[%clk 0:02:58]}  Qc7 {[%clk 0:02:56]} 6. Qd5 {[%clk 0:02:36]}  Nf6 {[%clk 0:02:55]} 7. Qg5 {[%clk 0:02:37]}  Rg8 {[%clk 0:02:53]} 8. Nd2 {[%clk 0:02:32]}  Ne4 {[%clk 0:02:47]} 9. Nxe4 {[%clk 0:02:22]}  Bxc3+ {[%clk 0:02:46]} 10. Nxc3 {[%clk 0:02:23]}  Rxg5 {[%clk 0:02:46]} 11. Bxg5 {[%clk 0:02:24]}  Qxc5 {[%clk 0:02:45]} 12. Nf3 {[%clk 0:02:17]}  d6 {[%clk 0:02:41]} 13. Rc1 {[%clk 0:02:13]}  Bg4 {[%clk 0:02:40]} 14. Bd2 {[%clk 0:02:02]}  Qh5 {[%clk 0:02:26]} 15. e4 {[%clk 0:01:40]}  Bxf3 {[%clk 0:02:24]} 16. gxf3 {[%clk 0:01:41]}  Nc5 {[%clk 0:01:58]} 17. Rg1 {[%clk 0:01:19]}  O-O-O {[%clk 0:01:52]} 18. b4 {[%clk 0:01:16]}  Ne6 {[%clk 0:01:49]} 19. Rg3 {[%clk 0:01:10]}  Kb8 {[%clk 0:01:45]} 20. Nd5 {[%clk 0:01:05]}  Nd4 {[%clk 0:01:40]} 21. Rc3 {[%clk 0:00:58]}  e6 {[%clk 0:01:36]} 22. Nf6 {[%clk 0:00:45]}  Qxh2 {[%clk 0:01:20]} 23. Be3 {[%clk 0:00:43]}  Nc6 {[%clk 0:01:07]} 24. b5 {[%clk 0:00:42]}  Ne5 {[%clk 0:01:08]} 25. f4 {[%clk 0:00:40]}  Ng6 {[%clk 0:01:08]} 26. Rh3 {[%clk 0:00:33]}  Qg1 {[%clk 0:01:08]} 27. f3 {[%clk 0:00:33]}  Qf2+ {[%clk 0:00:01]} 28. Kxf2 {[%clk 0:00:29]} 1-0


[Site "https://www.chess.com"]

[Event "Titled Tuesday Blitz March 28 Late 2023"]
[White "Raja Rithvik R"]
[Black "Kramnik, Vladimir"]
[WhiteFideId "35007394"]
[BlackFideId "4101588"]
[WhiteElo "2402"]
[BlackElo "2712"]
[Result "0-1"]
[Round "07"]
[TimeControl "180+2"]
[Date "2023.03.28"]
[WhiteClock "0:00:01"]
[BlackClock "0:00:24"]

1. d4 {[%clk 0:03:00]}  d5 {[%clk 0:02:59]} 2. c4 {[%clk 0:03:01]}  c6 {[%clk 0:03:00]} 3. Nf3 {[%clk 0:03:00]}  Nf6 {[%clk 0:03:00]} 4. Qc2 {[%clk 0:03:00]}  g6 {[%clk 0:02:58]} 5. Bf4 {[%clk 0:02:59]}  dxc4 {[%clk 0:02:49]} 6. Qxc4 {[%clk 0:02:52]}  Bg7 {[%clk 0:02:49]} 7. Nc3 {[%clk 0:02:45]}  b5 {[%clk 0:02:48]} 8. Qb3 {[%clk 0:02:39]}  O-O {[%clk 0:02:34]} 9. e3 {[%clk 0:02:39]}  Be6 {[%clk 0:02:17]} 10. Qc2 {[%clk 0:02:39]}  Nbd7 {[%clk 0:02:12]} 11. Ng5 {[%clk 0:02:27]}  Bf5 {[%clk 0:02:05]} 12. e4 {[%clk 0:02:27]}  b4 {[%clk 0:02:05]} 13. Na4 {[%clk 0:02:09]}  Nxe4 {[%clk 0:02:01]} 14. Nxe4 {[%clk 0:02:07]}  Qa5 {[%clk 0:01:59]} 15. O-O-O {[%clk 0:01:42]}  Bxe4 {[%clk 0:01:49]} 16. Qxe4 {[%clk 0:01:43]}  Qxa4 {[%clk 0:01:49]} 17. Bc4 {[%clk 0:01:44]}  e6 {[%clk 0:01:45]} 18. Kb1 {[%clk 0:01:38]}  Nf6 {[%clk 0:01:40]} 19. Qf3 {[%clk 0:01:35]}  Nd5 {[%clk 0:01:37]} 20. Bc1 {[%clk 0:01:33]}  Rad8 {[%clk 0:01:29]} 21. h4 {[%clk 0:01:32]}  Nb6 {[%clk 0:01:28]} 22. Bb3 {[%clk 0:01:28]}  Qb5 {[%clk 0:01:28]} 23. g4 {[%clk 0:01:14]}  a5 {[%clk 0:01:15]} 24. h5 {[%clk 0:01:09]}  a4 {[%clk 0:01:15]} 25. Bc2 {[%clk 0:00:42]}  Nc4 {[%clk 0:00:48]} 26. hxg6 {[%clk 0:00:28]}  fxg6 {[%clk 0:00:45]} 27. Qh3 {[%clk 0:00:27]}  Na3+ {[%clk 0:00:32]} 28. bxa3 {[%clk 0:00:20]}  bxa3+ {[%clk 0:00:32]} 29. Ka1 {[%clk 0:00:13]}  Rxf2 {[%clk 0:00:30]} 30. Qxh7+ {[%clk 0:00:12]}  Kf8 {[%clk 0:00:30]} 31. Bxa3+ {[%clk 0:00:06]}  c5 {[%clk 0:00:28]} 32. Qh4 {[%clk 0:00:04]}  Rxd4 {[%clk 0:00:24]} 33. Qxf2+ {[%clk 0:00:04]}  Rf4+ {[%clk 0:00:24]} 34. Rd4 {[%clk 0:00:01]}  Rxf2 {[%clk 0:00:24]} 0-1


[Site "https://www.chess.com"]